bitfinex/quotes_ETHUSD_20250725
["timestamp","ask_amount","ask_price","bid_price","bid_amount"]
[1753401834988,3.6034298,3703.8,3703.7,0.1352]
[1753401835507,2.70036724,3703.2,3703.1,0.001]
[1753401836018,2.70026202,3703.4,3703.1,0.1362]
[1753401836220,2.70036724,3703.2,3703.1,0.001]
[1753401836823,2.70036724,3703.2,3703.1,0.1362]
[1753401837025,3.60386724,3703.2,3703.1,0.1362]
[1753401837197,3.60386724,3703.2,3703.1,0.001]
[1753401840203,3.15786724,3703.2,3703.1,0.001]
[1753401840439,7.70612426,3703.4,3703.1,0.001]
[1753401840733,0.85231364,3703.6,3703.1,0.001]
[1753401840734,0.39481364,3703.6,3703.1,0.4327]
[1753401840912,2.70029433,3703.3,3703.1,0.001]
[1753401841111,2.70036724,3703.2,3703.1,0.001]
[1753401841311,3.15786724,3703.2,3703.1,0.001]
[1753401841518,3.15786724,3703.2,3703.1,0.1362]
[1753401842306,2.70087778,3702.5,3702.4,0.004]
[1753401842517,3.47127778,3702.5,3702.4,0.004]
[1753401842708,4.50997778,3702.5,3702.4,1e-08]
[1753401843132,3.4913696,3702.1,3702.0,1e-08]
[1753401843336,2.70146149,3701.7,3701.6,1e-08]
[1753401843536,2.70226449,3700.6,3700.5,7.7815]
[1753401843854,2.70226449,3700.6,3700.5,3.0]
[1753401844038,2.70226449,3700.6,3700.5,3.1352]
[1753401844213,3.15976449,3700.6,3700.5,0.1352]
[1753401846162,3.60576449,3700.6,3700.5,0.1352]
[1753401846511,3.15976449,3700.6,3700.5,0.1352]
[1753401848642,7.36176449,3700.6,3700.5,0.1352]
[1753401849052,6.90426449,3700.6,3700.5,0.1352]
[1753401849345,7.36176449,3700.6,3700.5,0.1352]
[1753401849962,0.7871,3700.4,3697.4,0.7803]
[1753401850166,3.48969039,3700.2,3698.9,0.1352]
[1753401850351,2.84386121,3700.1,3698.9,0.1352]
[1753401850518,3.94672149,3700.8,3699.2,3.0]
[1753401850719,0.1352,3700.6,3699.4,0.55]
[1753401851035,2.70245597,3700.4,3699.6,0.55]
[1753401851241,2.70245597,3700.4,3700.3,0.1352]
[1753401851439,2.70245597,3700.4,3699.2,0.4317]
[1753401851440,5.1495,3700.4,3699.2,0.4317]
[1753401851618,2.70343336,3699.0,3698.9,0.7594]
[1753401851814,2.70343336,3699.0,3696.8,2.70498291]
[1753401851815,2.70336027,3699.1,3698.0,0.8113]
[1753401852017,0.4575,3699.0,3698.0,0.8113]
[1753401852319,2.70417166,3698.0,3697.5,0.8113]
[1753401852538,0.4575,3698.0,3697.5,0.8113]
[1753401852741,0.446,3697.9,3696.5,1.31914921]
[1753401852941,4.251,3697.8,3696.3,1.576]
[1753401853137,4.251,3697.8,3696.3,1.243]
[1753401853345,0.9035,3697.7,3696.3,0.8113]
[1753401853542,0.9035,3697.6,3696.3,0.8113]
[1753401853872,0.4575,3697.7,3696.7,3.0]
[1753401854017,4.7105,3697.7,3696.5,0.45875261]
[1753401854217,4.7105,3697.7,3696.5,0.4317]
[1753401854455,0.4575,3697.7,3697.0,2.70482912]
[1753401854641,3.16189663,3697.7,3697.0,3.0]
[1753401854843,0.4575,3697.7,3697.0,0.6163705]
[1753401855024,4.257,3697.8,3697.1,0.55]
[1753401855220,0.7911,3698.0,3697.3,3.0]
[1753401855558,0.4855,3698.1,3697.2,0.55]
[1753401855728,4.26,3698.2,3697.6,0.55]
[1753401856052,2.70259739,3700.2,3697.4,0.55]
[1753401856260,3.18879385,3699.2,3697.7,0.57704383]
[1753401856552,4.26,3699.4,3698.5,3.55]
[1753401856754,4.26,3699.4,3698.1,3.0]
[1753401856954,0.924,3699.3,3698.2,0.55]
[1753401857155,2.70394834,3698.3,3697.8,0.8209]
[1753401857327,2.70430755,3697.9,3697.3,1.2268]
[1753401857524,2.70430755,3697.9,3696.9,3.0]
[1753401857525,0.4855,3698.0,3696.9,3.0]
[1753401857857,0.4385,3697.9,3696.8,0.804]
[1753401858072,2.70465237,3697.4,3696.8,0.804]
[1753401858264,0.4855,3697.7,3696.8,0.804]
[1753401858443,0.4855,3697.7,3696.9,2.70490523]
[1753401858644,3.18994052,3697.7,3696.9,2.70490523]
[1753401858845,0.4385,3698.3,3697.0,0.42181947]
[1753401859050,4.265,3698.1,3697.2,3.0]
[1753401859358,2.70453142,3697.5,3697.0,0.4388]
[1753401859666,0.4855,3697.5,3696.9,0.55]
[1753401859966,4.265,3698.1,3696.9,0.55]
[1753401859967,0.4855,3697.8,3696.9,0.55]
[1753401860566,0.4855,3697.8,3696.8,0.804]
[1753401860769,2.70466084,3697.4,3696.8,0.804]
[1753401860971,2.70461699,3697.4,3696.8,0.804]
[1753401861470,0.4855,3697.9,3697.0,2.70489586]
[1753401861639,0.4855,3697.9,3697.1,0.55]
[1753401861839,4.262,3698.0,3697.2,0.02704749]
[1753401862035,4.262,3698.0,3697.4,0.55]
[1753401862369,4.262,3698.0,3697.6,0.55]
[1753401862558,0.4855,3698.3,3697.7,3.0]
[1753401862761,1.4272,3698.8,3697.9,0.1352]
[1753401862938,2.70373847,3698.6,3698.5,0.1352]
[1753401863142,2.70373847,3698.6,3695.7,7.034]
[1753401863143,2.70532742,3696.5,3695.8,1.2091]
[1753401863364,2.70523945,3696.6,3695.8,1.2091]
[1753401863671,0.4855,3696.7,3695.7,0.001]
[1753401863872,0.4855,3696.5,3695.7,0.001]
[1753401864175,3.19082619,3696.5,3695.7,0.001]
[1753401864358,2.70564025,3696.0,3695.7,0.001]
[1753401864546,0.8319,3697.1,3695.7,0.001]
[1753401864745,2.70550661,3696.2,3695.8,0.4388]
[1753401864952,2.70533554,3696.4,3695.8,0.4388]
[1753401865149,2.70526173,3696.5,3695.7,0.001]
[1753401865352,2.70577412,3695.8,3695.7,0.001]
[1753401865761,3.62977412,3695.8,3695.7,0.001]
[1753401866375,3.62977412,3695.8,3695.3,0.001]
[1753401866376,2.706067,3695.4,3695.3,0.001]
[1753401866954,3.630067,3695.4,3695.3,0.001]
[1753401868082,7.910067,3695.4,3695.3,0.001]
[1753401868463,8.717367,3695.4,3695.3,0.001]
[1753401868663,0.8073,3694.8,3693.2,0.998]
[1753401868875,3.8073,3694.6,3693.2,0.998]
[1753401869075,2.70760566,3693.3,3693.2,0.998]
[1753401869390,4.00040566,3693.3,3693.2,0.998]
[1753401869562,4.43890566,3693.3,3693.2,1e-08]
[1753401869761,2.70760566,3693.3,3693.2,1e-08]
[1753401869971,4.302,3693.9,3693.2,1e-08]
[1753401870194,0.8073,3694.5,3693.2,0.77180001]
[1753401870515,0.89826017,3695.0,3693.5,0.55]
[1753401870803,2.70760566,3693.3,3693.2,1e-08]
[1753401871808,7.95960566,3693.3,3693.2,1e-08]
[1753401872158,7.52110566,3693.3,3693.2,1e-08]
[1753401872510,4.331,3693.3,3693.2,1e-08]
[1753401872709,7.52410566,3693.3,3693.2,1e-08]
[1753401873053,7.96260566,3693.3,3693.2,1e-08]
[1753401873335,7.52710566,3693.3,3693.2,1e-08]
[1753401873489,7.52710566,3693.3,3693.2,0.13520001]
[1753401874095,2.70710592,3694.0,3693.2,0.13520001]
[1753401874096,0.91175308,3695.7,3693.4,0.828]
[1753401874299,3.14454086,3695.5,3693.6,2.70738574]
[1753401874518,2.70690565,3694.3,3693.6,0.55]
[1753401874815,2.70674057,3694.5,3693.8,3.55]
[1753401874986,2.70666583,3694.6,3693.8,3.25723787]
[1753401875193,2.70609104,3695.4,3693.5,0.967]
[1753401875194,2.70637142,3695.0,3694.2,2.70694382]
[1753401875385,5.22027608,3694.8,3694.0,0.55]
[1753401875578,2.70657969,3694.7,3694.0,0.55]
[1753401875784,0.87327608,3694.8,3694.2,0.55]
[1753401875981,0.4855,3695.4,3694.5,0.55]
[1753401875982,4.347,3695.1,3694.5,0.55]
[1753401876484,3.19156832,3695.4,3694.7,6.25654517]
[1753401876723,2.706149,3695.3,3694.5,0.55]
[1753401876925,2.70641239,3695.0,3694.5,0.55]
[1753401877240,3.47620295,3695.7,3694.4,0.7574]
[1753401877241,4.346,3694.9,3694.4,0.7574]
[1753401877398,2.70679029,3694.5,3693.9,0.55]
[1753401877599,2.70681562,3694.4,3693.9,0.55]
[1753401877943,4.8315,3694.8,3694.1,0.55]
[1753401878334,2.70657969,3694.7,3694.1,0.55]
[1753401878532,2.70666433,3694.6,3694.1,0.55]
[1753401878758,4.8315,3694.8,3694.1,0.55]
[1753401879037,0.4385,3694.5,3693.8,0.7629]
[1753401879265,2.70737747,3693.7,3693.3,0.7678]
[1753401879396,2.70739405,3693.6,3693.3,0.7678]
[1753401879596,2.70738714,3693.6,3693.4,0.55]
[1753401879821,2.70709258,3694.0,3693.1,0.001]
[1753401880100,2.70759783,3693.4,3693.1,0.001]
[1753401880300,0.4385,3694.6,3693.1,0.001]
[1753401880528,2.70723018,3693.9,3693.4,0.55]
[1753401880858,0.4855,3694.3,3693.4,0.55]
[1753401881137,2.70760566,3693.3,3693.2,1e-08]
[1753401881340,4.342,3693.5,3693.2,1e-08]
[1753401881538,3.19310566,3693.3,3693.2,1e-08]
[1753401883466,2.70760566,3693.3,3693.2,1e-08]
[1753401883809,3.51807897,3693.2,3693.1,1e-08]
[1753401884009,3.51807897,3693.2,3692.4,0.001]
[1753401884010,2.70819228,3692.5,3692.4,0.001]
[1753401884219,7.05619228,3692.5,3692.4,0.001]
[1753401884418,7.98019228,3692.5,3692.4,0.001]
[1753401884850,2.70870578,3691.8,3691.7,1.5361998]
[1753401885042,3.19420578,3691.8,3691.7,1.5361998]
[1753401885212,0.4855,3691.8,3690.9,0.8006]
[1753401885412,1.2785,3692.6,3691.7,0.55]
[1753401885628,4.8023,3692.6,3692.4,0.1352]
[1753401886047,3.16149228,3692.5,3692.4,0.1352]
[1753401886254,2.70819228,3692.5,3692.4,0.1352]
[1753401887347,2.70819228,3692.5,3690.9,0.8006]
[1753401887348,2.70915598,3691.2,3690.9,0.8006]
[1753401887548,2.70908835,3691.3,3691.1,0.55]
[1753401887867,2.70889804,3691.6,3691.1,0.55]
[1753401888021,2.70858606,3692.0,3691.9,0.1352]
[1753401888345,2.70896676,3691.5,3691.2,0.60786]
[1753401888543,4.351,3692.1,3691.2,0.16836]
[1753401888751,4.351,3692.1,3691.4,0.1352]
[1753401889045,2.70855904,3692.0,3691.9,0.1352]
[1753401889360,3.16185904,3692.0,3691.9,0.1352]
[1753401890532,2.70855904,3692.0,3691.9,0.1352]
[1753401890737,3.16185904,3692.0,3691.9,0.1352]
[1753401891721,3.59375904,3692.0,3691.9,0.1352]
[1753401892516,2.70921947,3691.1,3691.0,0.4395]
[1753401892850,2.70921947,3691.1,3690.9,0.8006]
[1753401892851,2.70929287,3691.0,3690.9,0.8006]
[1753401893155,0.8308,3691.0,3688.7,0.7955]
[1753401893454,0.8308,3691.0,3688.0,0.2495]
[1753401893455,2.70995365,3690.1,3689.4,0.1352]
[1753401893654,2.71039436,3689.5,3689.4,0.1352]
[1753401893830,4.425,3689.5,3689.4,0.5747]
[1753401894150,2.71030958,3689.7,3689.4,0.5747]
[1753401894324,1.2621,3690.8,3689.1,0.7847]
[1753401894325,0.4533,3690.4,3689.5,0.4395]
[1753401894525,7.13682037,3690.3,3689.6,0.5771032]
[1753401894727,4.428,3690.2,3689.6,0.55]
[1753401894926,2.71010419,3689.9,3689.6,0.55]
[1753401895140,2.70995365,3690.1,3688.1,0.8188]
[1753401895314,1.39473148,3692.0,3689.4,0.8188]
[1753401895518,0.8032,3691.8,3689.7,0.55]
[1753401895718,2.70898717,3691.5,3689.9,0.55]
[1753401895918,2.70918652,3691.2,3690.1,0.55]
[1753401896151,4.455,3691.1,3690.3,0.55]
[1753401896316,7.16422012,3691.1,3690.3,0.55]
[1753401896520,4.455,3691.1,3690.4,1.3019]
[1753401896719,2.70965993,3690.5,3690.4,0.8054]
[1753401897468,7.16965993,3690.5,3690.4,0.8054]
[1753401897635,4.46,3690.5,3689.9,0.7858]
[1753401897835,2.7100271,3690.0,3689.7,0.4965]
[1753401898035,4.459,3690.0,3689.6,0.4395]
[1753401898233,4.459,3690.0,3689.7,0.17218]
[1753401898624,2.71017399,3689.8,3689.7,0.17218]
[1753401898961,2.71037768,3689.6,3689.4,0.7858]
[1753401899136,2.71037768,3689.6,3689.4,1.2823]
[1753401899339,2.71039436,3689.5,3689.4,0.7858]
[1753401899877,4.455,3689.6,3689.4,1.7218]
[1753401900029,0.8137,3690.8,3689.5,1.486]
[1753401900230,0.24808903,3690.8,3690.0,0.55]
[1753401900465,4.457,3690.7,3690.2,0.55]
[1753401900663,4.457,3690.9,3690.5,0.55]
[1753401900848,4.457,3690.8,3690.5,0.55]
[1753401901162,4.9103,3690.7,3689.8,0.55]
[1753401901364,5.7034,3690.6,3689.7,0.7613]
[1753401901727,2.7101548,3689.9,3689.7,0.7613]
[1753401901926,2.70982399,3690.3,3689.8,0.936]
[1753401902243,1.2662,3691.1,3689.9,1.486]
[1753401902244,4.458,3690.5,3689.9,1.486]
[1753401902549,4.457,3690.4,3690.0,0.02710027]
[1753401902859,4.457,3690.4,3690.1,1.08731003]
[1753401903064,4.457,3690.4,3690.1,0.15131003]
[1753401903227,4.455,3690.4,3690.1,0.4965]
[1753401903426,0.57225689,3691.3,3690.2,1.0165988]
[1753401903628,1.74963148,3691.8,3690.5,0.7721]
[1753401903629,4.455,3691.5,3690.5,0.7721]
[1753401903826,2.70899929,3691.4,3690.6,1.07359586]
[1753401904030,2.70868456,3691.9,3691.0,0.55]
[1753401904231,4.454,3691.8,3691.4,0.55]
[1753401904464,4.454,3691.8,3691.7,0.1352]
[1753401904637,2.70868509,3691.9,3691.7,0.1352]
[1753401904837,7.16370578,3691.8,3691.7,0.1352]
[1753401905042,7.16270578,3691.8,3691.7,0.1352]
[1753401905439,7.73569877,3691.8,3691.7,0.1352]
[1753401905653,7.73467302,3691.8,3691.7,0.1352]
[1753401905964,7.16170578,3691.8,3691.7,0.1352]
[1753401906332,2.70870578,3691.8,3691.7,0.1352]
[1753401906648,4.452,3691.8,3691.7,0.1352]
[1753401906865,7.16070578,3691.8,3691.7,0.1352]
[1753401907474,2.7084767,3692.2,3691.7,0.6317]
[1753401907659,0.002,3692.4,3691.8,0.936]
[1753401907985,2.71027813,3692.4,3692.1,0.1352]
[1753401908138,4.445,3692.3,3691.9,0.7628]
[1753401908335,2.70877762,3691.8,3691.5,0.7628]
[1753401908635,4.443,3691.7,3690.6,0.7713]
[1753401908839,4.443,3691.7,3689.6,0.22718]
[1753401908840,0.7681,3691.1,3691.0,0.1352]
[1753401909138,7.92231947,3691.1,3691.0,0.1352]
[1753401909346,8.80751947,3691.1,3691.0,0.1352]
[1753401909568,6.67361454,3691.1,3689.6,0.817]
[1753401909872,2.7095131,3690.7,3690.6,0.1352]
[1753401910177,7.1565131,3690.7,3690.6,0.1352]
[1753401910373,7.73182764,3690.7,3690.6,0.1352]
[1753401910541,8.61702764,3690.7,3690.6,0.1352]
[1753401910738,8.61702764,3690.7,3689.4,0.4395]
[1753401910739,2.70958651,3690.6,3688.2,0.4395]
[1753401910939,0.1352,3690.2,3689.7,0.1352]
[1753401911447,0.7944,3690.7,3689.8,0.96310173]
[1753401911773,4.463,3690.6,3690.2,0.55]
[1753401911949,4.463,3690.6,3690.3,0.96309806]
[1753401912147,0.57588841,3691.0,3690.5,0.1352]
[1753401912348,2.7090879,3691.3,3690.6,0.96309586]
[1753401912553,2.7090879,3691.3,3690.5,0.29732]
[1753401912554,4.463,3691.2,3690.5,0.16212]
[1753401912758,2.70921947,3691.1,3690.5,0.16212]
[1753401913241,4.463,3691.2,3691.0,0.1352]
[1753401913437,0.57640532,3691.2,3691.0,0.1352]
[1753401913655,4.46,3691.2,3691.0,0.6317]
[1753401913854,1.1804,3691.5,3691.0,0.77712]
[1753401914051,1.1804,3691.5,3691.1,1.486]
[1753401914283,1.1804,3691.5,3691.4,0.6852]
[1753401914688,1.1804,3691.5,3691.4,7.35728928]
[1753401914910,1.1804,3691.5,3691.4,11.98115229]
[1753401915071,0.002,3692.4,3692.3,7.04643897]
[1753401915393,0.002,3692.4,3692.3,7.18163897]
[1753401915550,0.002,3692.4,3692.3,8.10013897]
[1753401916124,0.002,3692.4,3692.3,5.3918]
[1753401916259,0.002,3692.4,3692.3,8.10013897]
[1753401916455,0.002,3692.4,3692.3,5.99755932]
[1753401916788,0.002,3692.4,3692.3,6.47265932]
[1753401917099,0.002,3692.4,3692.3,9.18099829]
[1753401919101,0.002,3692.4,3692.3,8.70589829]
[1753401919255,0.002,3692.4,3692.3,13.63699829]
[1753401919659,0.002,3692.4,3692.3,43.63699829]
[1753401919905,0.002,3692.4,3692.3,42.13257629]
[1753401920052,0.002,3692.4,3692.3,25.51423229]
[1753401920252,0.002,3692.4,3692.3,17.37099829]
[1753401920652,0.002,3692.4,3692.3,19.20549529]
[1753401921155,0.002,3692.4,3692.3,16.37454329]
[1753401921365,0.002,3692.4,3692.3,15.66603529]
[1753401921570,1e-08,3692.4,3692.3,15.66603529]
[1753401921873,1e-08,3692.4,3692.3,22.10517429]
[1753401922070,0.002,3693.2,3693.1,3.25775229]
[1753401922274,0.002,3693.2,3693.1,12.10098965]
[1753401922490,0.002,3693.2,3693.1,16.40561213]
[1753401923609,0.002,3693.2,3693.1,18.72632213]
[1753401923955,0.002,3693.9,3693.8,2.70723915]
[1753401924160,0.002,3693.9,3693.8,10.72831154]
[1753401924360,0.002,3693.9,3693.8,5.02876426]
[1753401924605,0.002,3693.9,3693.8,8.1242]
[1753401925577,0.002,3693.9,3693.8,10.83143915]
[1753401925775,0.002,3693.9,3693.8,11.30653915]
[1753401926097,0.002,3693.9,3693.8,9.665]
[1753401926296,0.002,3693.9,3693.8,5.226]
[1753401926457,0.002,3693.9,3693.8,7.67383915]
[1753401927496,0.002,3693.9,3693.8,7.67283915]
[1753401927874,0.002,3693.9,3693.8,7.67183915]
[1753401928394,0.002,3693.9,3693.6,3.0]
[1753401928594,0.002,3693.9,3693.8,10.69723915]
[1753401928917,0.002,3693.9,3693.0,0.4434]
[1753401929064,0.002,3693.9,3692.8,7.045]
[1753401929065,3.14670418,3693.8,3693.1,2.70769677]
[1753401929261,3.14670418,3693.8,3693.3,3.0]
[1753401929467,0.4394,3693.7,3693.0,3.0]
[1753401929675,2.8074061,3693.6,3693.1,4.44]
[1753401929875,0.1,3693.8,3693.1,4.44]
[1753401930078,0.1,3693.8,3693.2,2.70767897]
[1753401930286,0.1,3693.6,3693.2,2.70767897]
[1753401930611,0.1,3693.6,3693.0,2.7078218]
[1753401930612,0.1,3693.6,3693.3,4.436]
[1753401930780,0.5394,3693.6,3693.3,4.436]
[1753401930967,0.1,3693.6,3693.3,4.436]
[1753401931380,3.14680417,3693.6,3693.3,4.436]
[1753401931583,2.70747382,3693.5,3692.8,2.78325031]
[1753401931896,0.4394,3693.5,3693.0,2.7078145]
[1753401932095,0.4394,3693.5,3693.0,3.0]
[1753401932409,0.4394,3693.4,3693.1,4.432]
[1753401932716,0.4394,3693.4,3692.9,3.55]
[1753401932717,0.4394,3693.4,3693.2,4.431]
[1753401933083,0.5932,3693.6,3693.3,4.43]
[1753401933283,0.1,3693.6,3693.3,4.43]
[1753401933513,0.5394,3693.6,3692.8,3.0753]
[1753401933808,2.80769848,3693.2,3692.9,4.427]
[1753401934107,3.14716225,3693.1,3692.9,4.427]
[1753401934471,1.0326,3693.0,3692.8,4.426]
[1753401934870,0.4394,3692.9,3692.8,4.426]
[1753401935072,0.8092,3693.8,3692.8,4.426]
[1753401935073,0.1,3693.3,3692.9,2.70785199]
[1753401935382,0.1,3693.6,3692.9,0.55]
[1753401935564,0.1,3693.0,3691.7,4.7426225]
[1753401935770,0.1,3693.0,3692.8,2.70795345]
[1753401935995,0.1,3693.0,3692.8,7.13195345]
[1753401936195,3.51644953,3693.8,3692.1,3.72041568]
[1753401936196,0.1,3693.3,3692.9,4.5592]
[1753401936405,0.1,3693.0,3692.8,4.424]
[1753401936620,0.1,3693.3,3693.2,2.84287897]
[1753401936767,0.1,3693.3,3693.2,2.70767897]
[1753401936974,0.1,3693.3,3693.2,2.84287897]
[1753401937382,0.9092,3693.8,3693.2,0.16227678]
[1753401937583,0.1,3693.6,3693.0,2.78312081]
[1753401937782,0.1,3693.6,3693.4,2.70751493]
[1753401938027,0.1,3693.6,3693.5,0.1352]
[1753401938611,0.1,3693.6,3693.5,2.84265904]
[1753401938909,0.1,3693.6,3693.5,0.1352]
[1753401938910,1.0326,3693.6,3693.5,0.1352]
[1753401939109,0.72378,3693.6,3693.5,0.1352]
[1753401939289,1.21698,3693.6,3693.5,0.1352]
[1753401940321,1.0326,3693.6,3693.5,0.1352]
[1753401940541,0.1,3693.6,3693.5,0.1352]
[1753401940680,0.9092,3693.8,3693.5,0.1352]
[1753401940879,0.1,3693.4,3693.2,4.417]
[1753401941110,0.1,3693.4,3693.3,2.70760566]
[1753401941420,0.1,3693.7,3693.6,2.70738574]
[1753401941600,0.8092,3693.8,3693.7,2.70731245]
[1753401941801,0.002,3693.9,3693.7,2.70731245]
[1753401942117,0.002,3693.9,3693.8,2.70723915]
[1753401942277,0.002,3693.9,3693.6,7.25557949]
[1753401942278,0.1,3693.8,3693.6,4.413]
[1753401942797,0.1,3693.8,3693.7,0.1352]
[1753401943116,0.002,3693.9,3693.7,2.84251245]
[1753401943322,0.1,3693.8,3693.7,2.84251245]
[1753401943523,0.002,3693.9,3693.8,2.70723915]
[1753401943732,0.002,3693.9,3693.8,2.73431154]
[1753401943925,0.002,3693.9,3693.8,4.29082916]
[1753401944214,0.002,3693.9,3693.8,4.70715677]
[1753401945039,0.002,3693.9,3693.8,4.26375677]
[1753401945197,0.002,3693.9,3693.8,7.11523915]
[1753401945407,0.002,3693.9,3693.7,0.1352]
[1753401945584,0.102,3693.9,3693.8,4.407]
[1753401945783,0.102,3693.9,3693.7,0.1352]
[1753401945987,3.17563915,3693.8,3693.7,4.5422]
[1753401946235,0.9159,3693.8,3693.7,4.5422]
[1753401946808,3.62313915,3693.8,3693.7,4.5422]
[1753401947717,0.9159,3693.8,3693.7,4.5422]
[1753401948288,3.62313915,3693.8,3693.7,4.5422]
[1753401948491,4.40553021,3693.8,3693.7,4.5422]
[1753401949594,0.102,3693.9,3693.7,4.5422]
[1753401949794,0.4475,3693.8,3693.7,0.1352]
[1753401950028,3.62313915,3693.8,3693.7,0.1352]
[1753401951641,0.1,3692.5,3691.7,3.1176225]
[1753401951799,2.70885253,3691.6,3691.5,0.001]
[1753401951999,0.1,3692.0,3691.5,0.001]
[1753401952401,0.5475,3691.6,3691.5,0.001]
[1753401952602,3.25635253,3691.6,3691.5,0.001]
[1753401952902,1.0159,3691.6,3691.5,0.001]
[1753401953323,0.5475,3691.6,3691.5,0.001]
[1753401953527,0.1,3691.6,3691.5,0.001]
[1753401953716,3.93484325,3692.2,3691.5,0.001]
[1753401953717,0.758,3692.2,3691.5,0.001]
[1753401953919,0.758,3692.2,3691.7,2.7087769]
[1753401954124,0.1,3692.3,3691.8,2.70870578]
[1753401954323,0.1,3692.3,3691.7,3.69256341]
[1753401954516,0.7915,3692.6,3691.9,2.70856245]
[1753401954843,0.7915,3692.6,3692.0,2.70849544]
[1753401955044,0.1,3691.8,3691.7,0.54940602]
[1753401955336,0.1,3691.8,3691.7,7.10277915]
[1753401955498,0.1,3691.8,3691.7,2.70877915]
[1753401955705,0.1,3691.8,3691.7,7.09977915]
[1753401955914,0.1,3691.8,3691.5,0.001]
[1753401956113,0.1,3691.8,3691.6,4.391]
[1753401957242,0.1,3691.8,3691.7,2.70877915]
[1753401957555,0.1,3692.1,3691.7,0.98097524]
[1753401957709,2.70825008,3692.5,3691.8,2.70865667]
[1753401958036,0.1,3692.3,3691.9,5.70860713]
[1753401958225,0.1,3692.3,3692.0,2.70855904]
[1753401958538,0.1,3692.3,3692.1,2.70847449]
[1753401958740,0.1,3692.6,3692.1,0.97062929]
[1753401958965,0.7935,3693.0,3692.2,0.55]
[1753401959260,0.7935,3693.6,3692.8,2.70790148]
[1753401959564,0.7935,3693.6,3693.0,2.70782561]
[1753401959901,0.1,3693.5,3692.9,4.385]
[1753401960128,0.1,3693.1,3692.9,4.385]
[1753401960327,0.1,3693.1,3692.8,0.55]
[1753401960530,2.70922248,3693.9,3693.0,2.70782561]
[1753401960719,0.1,3693.2,3693.0,2.70781617]
[1753401960906,0.1,3692.6,3692.1,0.97062929]
[1753401961129,0.1,3692.6,3692.2,2.70838096]
[1753401961307,0.1,3692.6,3692.3,4.381]
[1753401961510,0.1,3692.6,3692.5,0.1352]
[1753401961754,0.1,3691.6,3690.6,2.71057699]
[1753401961909,0.1,3691.6,3690.7,4.382]
[1753401962238,3.72475253,3691.6,3691.5,0.1362]
[1753401964823,0.1,3691.8,3691.5,0.1362]
[1753401965025,0.1,3691.8,3691.6,2.70878423]
[1753401965231,1.2197,3692.5,3691.7,0.1352]
[1753401965418,0.1,3692.1,3691.8,2.70870578]
[1753401965747,0.1,3692.1,3692.0,0.1352]
[1753401966534,2.70826918,3692.4,3692.0,0.1352]
[1753401966841,0.1,3692.1,3692.0,0.1352]
[1753401967026,0.1,3692.1,3691.5,0.001]
[1753401967027,0.1,3691.7,3691.5,0.001]
[1753401967431,0.1,3691.7,3691.6,0.1352]
[1753401967631,0.8643,3691.7,3691.6,0.1352]
[1753401968421,1.2421,3692.1,3691.6,0.1352]
[1753401968664,1.2421,3692.1,3690.6,0.001]
[1753401968665,3.50403968,3690.8,3690.6,0.001]
[1753401968819,3.6311291,3690.8,3690.6,0.001]
[1753401969021,4.65513968,3690.8,3690.6,0.001]
[1753401969338,4.51993968,3690.8,3690.6,0.001]
[1753401970517,0.7946,3690.8,3690.6,0.001]
[1753401970719,1.2623,3691.2,3690.7,0.1362]
[1753401970944,0.1,3691.0,3690.9,0.1352]
[1753401971149,1.2117,3691.7,3691.1,0.1352]
[1753401971354,0.1,3691.3,3691.2,2.70914607]
[1753401971660,0.7642,3692.1,3691.6,0.1352]
[1753401971854,3.53390962,3692.5,3691.8,2.70868352]
[1753401972059,0.1,3692.1,3691.9,0.02708632]
[1753401972352,0.8257,3692.5,3692.4,0.1352]
[1753401972519,0.8257,3692.5,3692.0,0.1352]
[1753401972718,0.8257,3692.5,3692.4,0.1352]
[1753401973052,0.9257,3692.5,3692.4,0.1352]
[1753401973264,3.63389228,3692.5,3692.4,0.1352]
[1753401973467,4.35967904,3692.5,3692.4,0.1352]
[1753401973763,5.27557904,3692.5,3692.4,0.1352]
[1753401973973,4.54979228,3692.5,3692.4,0.1352]
[1753401974564,0.1,3692.5,3692.4,0.1352]
[1753401974870,0.8257,3692.8,3692.4,0.1352]
[1753401975236,0.8257,3692.8,3692.2,2.70838154]
[1753401975237,0.1,3692.4,3692.2,2.70838154]
[1753401975432,0.1,3692.8,3692.7,0.1352]
[1753401975847,0.1,3692.8,3692.7,4.5372]
[1753401976253,0.1,3691.8,3690.8,0.7622]
[1753401976567,0.1,3692.7,3692.4,2.70826562]
[1753401976773,1.288,3693.6,3692.5,7.35276071]
[1753401976947,2.70749386,3693.5,3692.7,2.70799374]
[1753401977150,0.1,3692.8,3692.6,2.70809671]
[1753401977342,0.1,3692.8,3692.7,0.77765967]
[1753401977548,2.70691128,3694.3,3692.7,0.77765967]
[1753401977549,1.2518,3694.1,3692.8,2.70792058]
[1753401977772,2.7071024,3694.0,3693.0,2.70780828]
[1753401977943,2.7071024,3694.0,3692.8,2.70792058]
[1753401977944,2.70723915,3693.8,3693.1,7.11475182]
[1753401978147,0.1,3693.4,3693.2,0.02707678]
[1753401978354,0.1,3693.4,3693.2,0.71418577]
[1753401979274,0.1,3693.4,3693.3,2.70760566]
[1753401979489,0.1,3693.6,3693.2,0.74126255]
[1753401979690,0.1,3693.4,3693.3,3.15860566]
[1753401979839,0.1,3693.4,3693.3,4.26005694]